Cogmind - Beta 17 @@@ ROGUE MODE // 2026.07.29 @ 16:27:23 Player: Afro Result: Destroyed by D-53 Grenadier with Mini Grenade Launcher Performance ------------- Evolutions (0) 0 Regions Visited (4) 800 Robots Destroyed (33) 165 Value Destroyed (697) 697 Prototype IDs (32) 640 Alien Tech Used (0) 0 Bonus (300) 300 TOTAL SCORE: 2602 Bonus ------- Aligned with FarCom 300 Cogmind --------- Core Integrity 0/250 Matter 162/300 Energy 247/250 System Corruption 3% Temperature Cool (0) Movement Flying (107) Ox1 Location -9/Mines Parts ------- > --- POWER (1) -------- Ion Engine > --- PROPULSION (2) --- Improved Flight Unit Improved Flight Unit > --- UTILITY (2) ------ Medium Storage Unit > --- WEAPON (2) ------- Mini Grenade Launcher > --- INVENTORY (10) --- Ion Engine Improved Flight Unit Flying Fortress v7 Hardened Light Armor Plating Hacking Suite Datajack Peak State ------------ > --- POWER ------------ Ion Engine > --- PROPULSION ------- Improved Flight Unit Improved Flight Unit > --- UTILITY ---------- Medium Storage Unit Signal Interpreter > --- WEAPON ----------- Light Cannon Mini Grenade Launcher > --- INVENTORY -------- Ion Engine Improved Flight Unit Improved Flight Unit Flying Fortress v7 Hardened Light Armor Plating Hacking Suite Datajack [Rating: 16] Favorites ----------- Power Ion Engine Engine Ion Engine Propulsion Aluminum Leg Treads Light Treads Leg Aluminum Leg Flight Unit Improved Flight Unit Utility Signal Interpreter Device Seismic Detector Storage Medium Storage Unit Processor Signal Interpreter Weapon Assault Rifle Ballistic Gun Assault Rifle Ballistic Cannon Light Cannon Launcher Mini Grenade Launcher Slashing Weapon Mining Claw Special Melee Weapon Datajack Build | -11 -10 -10 -10 -9 ------- Run | Yrd Mat Min Exi Min Slots Evolved . | . . . . . Power . | . . . . . Propulsion . | . . . . . Utility . | . . . . . Weapon . | . . . . . Parts Attached 24 | 7 14 . 2 1 Power 4 | 1 3 . . . Engine 4 | 1 3 . . . Core . | . . . . . Reactor . | . . . . . Propulsion 9 | 2 6 . 1 . Treads 2 | 2 . . . . Leg 4 | . 4 . . . Wheel . | . . . . . Hover . | . . . . . Flight 3 | . 2 . 1 . Utility 4 | 2 2 . . . Device 1 | 1 . . . . Storage 2 | 1 1 . . . Processor 1 | . 1 . . . Hackware . | . . . . . Protection . | . . . . . Artifact . | . . . . . Weapon 7 | 2 3 . 1 1 Energy Gun . | . . . . . Energy Cannon . | . . . . . Ballistic Gun 3 | 2 1 . . . Ballistic Cannon 1 | . 1 . . . Launcher 1 | . . . . 1 Special Weapon . | . . . . . Impact Weapon . | . . . . . Slashing Weapon 1 | . 1 . . . Piercing Weapon . | . . . . . Special Melee Weapon 1 | . . . 1 . Unidentified Prototypes 1 | . 1 . . . Parts Lost 5 | . 2 . . 3 Power . | . . . . . Propulsion 2 | . 1 . . 1 Utility 1 | . . . . 1 Weapon 2 | . 1 . . 1 Highest Loss Streak 3 | . 1 . . 3 To Critical Strikes . | . . . . . Average Backups 8 | 4 8 10 8 7 Power 1 | 1 1 1 1 1 Propulsion 3 | 1 3 4 3 3 Utility 2 | . 2 3 2 2 Weapon . | . . 1 1 . Tool/Special . | . . . . . Unused Backups 15 | . 9 . 1 5 Power 2 | . 1 . . 1 Propulsion 4 | . 2 . . 2 Utility 7 | . 4 . 1 2 Weapon 2 | . 2 . . . Tool/Special . | . . . . . Average Slot Usage (%) 98 | . 98 100 90 99 Engine 14 | . 14 14 14 14 Treads 4 | . 8 . . . Leg 17 | . 19 28 20 . Flight 5 | . . . 7 28 Device 4 | . 7 . . . Storage 14 | . 14 14 14 14 Processor 9 | . 6 14 14 13 Ballistic Gun 12 | . 17 14 . . Ballistic Cannon 9 | . 7 14 4 14 Launcher 2 | . . . . 12 Special Melee Weapon 2 | . . . 14 1 Peak Build Rating 16 | 7 10 10 15 16 Average Rating 9 | 5 8 10 10 15 On Entrance 8 | . 7 10 10 15 Avg Prop Armor Cover (%) 9 | . 9 . . . Naked Turns . | . . . . . Heaviest Build 21 | 15 21 21 19 19 Greatest Support 40 | 40 40 20 20 10 Greatest Overweight (x) 4 | 1 4 1 1 1 Average Overweight (x) . | . . 1 . 1 Largest Inventory Capacity 10 | 8 10 10 10 10 Average Capacity 9 | 7 8 10 10 10 Most Carried 10 | 7 10 10 10 10 Average Carried 8 | 4 8 10 9 9 Final Capacity 10 | 8 10 10 10 10 Final Carried 10 | 6 10 10 10 9 Class Distribution -------------------- 93% | Mutant 6% | Scavenger-Mutant Dominant Class ---------------- Mutant | -10/Materials Mutant | -10/Mines Mutant | -10/Exiles Mutant | -9/Mines Resources | -11 -10 -10 -10 -9 ----------- Run | Yrd Mat Min Exi Min Matter Collected 992 | 291 658 . . 43 Remotely . | . . . . . Salvage Created 1076 | 85 912 . . 79 Parts 61 | 5 47 . . 9 Haulers Intercepted 1 | . 1 . . . Recyclers Shooed 6 | . 6 . . . Parts Field Recycled . | . . . . . Retrieved Matter . | . . . . . Parts Self-Destructed . | . . . . . Prevented . | . . . . . Parts Restored . | . . . . . Kills | -11 -10 -10 -10 -9 ------- Run | Yrd Mat Min Exi Min Combat Hostiles Destroyed 25 | . 18 . . 7 Guns 17 | . 17 . . . Cannons 4 | . 1 . . 3 AOE 4 | . . . . 4 Classes Destroyed 9 | 2 5 . . 2 Worker 1 | . . . . 1 Tunneler 2 | 1 1 . . . Hauler 1 | . 1 . . . Recycler 4 | 1 3 . . . Operator 2 | . 2 . . . Watcher 1 | . 1 . . . Swarmer 9 | . 6 . . 3 Grunt 13 | . 12 . . 1 Assembled 3 | . . . . 3 Best Kill Streak 4 | 1 4 . . 4 Combat Bots Only 4 | . 4 . . 3 Max Kills in Single Turn 3 | 1 1 . . 3 Gunslinging . | . . . . . Exploded 1 | . . . . 1 Melee . | . . . . . Uniques/NPCs Destroyed . | . . . . . Combat | -11 -10 -10 -10 -9 -------- Run | Yrd Mat Min Exi Min Hostile Shots Fired 110 | . 90 . . 20 Missed 27 | . 24 . . 3 Hits 83 | . 66 . . 17 Melee 3 | . . . . 3 Projectile 80 | . 66 . . 14 AOE 5 | . . . . 5 Damage Taken 1179 | . 768 . . 411 Core 282 | . 142 . . 140 Absorbed by Shields . | . . . . . Core Remaining (%) 100 | 100 . . . . Volleys Fired 100 | 5 84 . . 11 Largest 2 | 2 2 . . 2 Hottest 60 | 40 53 . . 60 Shots Fired 182 | 10 156 . . 16 Gun 137 | 10 127 . . . Cannon 40 | . 29 . . 11 Launcher 5 | . . . . 5 Special . | . . . . . Kinetic 177 | 10 156 . . 11 Thermal . | . . . . . Explosive 5 | . . . . 5 Electromagnetic . | . . . . . Robot Hit Streak 11 | 3 11 . . 8 Robot Miss Streak 3 | 3 3 . . 1 Penetration Max . | . . . . . Secondary Targets 1 | . 1 . . . Max Gunslinging Chain 1 | . 1 . . . Shots Hit Robots 102 | 6 89 . 2 5 Core Hits 56 | 3 39 1 . 13 Critical Kills . | . . . . . Critical Parts Destroyed 1 | . 1 . . . Critical Strikes 2 | . 2 . . . Destroy 1 | . 1 . . . Blast 1 | . 1 . . . Melee Attacks 6 | . 4 . 2 . Impact . | . . . . . Slashing 4 | . 4 . . . Piercing . | . . . . . Sneak Attacks 3 | . 1 . 2 . Combat Hostiles . | . . . . . Follow-up Attacks . | . . . . . Damage Inflicted 1674 | 78 1287 17 . 292 Guns 1003 | 78 925 . . . Cannons 380 | . 281 . . 99 Explosions 175 | . . . . 175 Melee 70 | . 70 . . . Ramming 46 | . 11 17 . 18 Kinetic 1383 | 78 1206 . . 99 Thermal . | . . . . . Explosive 175 | . . . . 175 Electromagnetic . | . . . . . Impact . | . . . . . Slashing 70 | . 70 . . . Piercing . | . . . . . Highest Corruption 3 | . . . . 3 Average Corruption 3 | . . . . 3 Corruption Purged . | . . . . . Corruption Blocked . | . . . . . Effects 1 | . . . . 1 Message Errors 1 | . . . . 1 Overload Shots . | . . . . . Overflow Damage 5 | . 5 . . . Projectiles . | . . . . . Explosions . | . . . . . Melee 5 | . 5 . . . Knockbacks 1 | . . . . 1 Impact . | . . . . . Kinetic 1 | . . . . 1 Secondary . | . . . . . Self-Inflicted Damage 40 | . . . . 40 Shots 1 | . . . . 1 Rammed 6 | . 3 . . 3 Targets Rammed 14 | . 6 5 . 3 Kicked 8 | . 3 5 . . Crushed . | . . . . . Highest Temperature 33 | . 33 . . 31 Average Temperature 12 | . 11 . . 14 Received Heat Transfer 353 | . 327 . . 26 Siege Activations . | . . . . . Martial Activations . | . . . . . Shielding Activations . | . . . . . Robots Disrupted . | . . . . . Combat Hostiles . | . . . . . Robots Corrupted . | . . . . . Combat Hostiles . | . . . . . Parts Fried . | . . . . . Impact Corruptions . | . . . . . Robots Melted . | . . . . . Combat Hostiles . | . . . . . Parts Melted . | . . . . . Heat Transferred . | . . . . . Parts Sabotaged . | . . . . . Parts Stolen . | . . . . . Parts Stripped . | . . . . . Power Chain Reactions . | . . . . . Alert | -11 -10 -10 -10 -9 ------- Run | Yrd Mat Min Exi Min Maximum Alert Level . | . . . . . Low Security (%) 100 | 100 100 100 . 100 Level 1 . | . . . . . Level 2 . | . . . . . Level 3 . | . . . . . Level 4 . | . . . . . Level 5 . | . . . . . High Security . | . . . . . Max Security . | . . . . . Peak Influence 156 | 5 156 28 . 95 Initial 28 | . . 28 . . Average 41 | . 62 1 . 19 Influence Increases 751 | 10 551 . . 190 Destroy 0b10 Robot/C 440 | . 360 . . 80 Destroy 0b10 Robot/NC 55 | 10 40 . . 5 Destroy Leader 104 | . 84 . . 20 Successful Hack 11 | . 6 . . 5 Disable Machine 75 | . 15 . . 60 Destroy Structure 21 | . 1 . . 20 Lose Combat Pursuer 45 | . 45 . . . Influence Decreases 710 | 10 476 75 . 149 Entered New Map 47 | . . 47 . . Time Decay 613 | 10 456 28 . 119 Lost Part 50 | . 20 . . 30 Squads Dispatched 5 | . 4 . . 1 Investigation 3 | . 2 . . 1 Extermination . | . . . . . Reinforcement 2 | . 2 . . . Assault . | . . . . . Garrison . | . . . . . Intercept . | . . . . . Searches Triggered . | . . . . . Construction Impeded . | . . . . . Haulers Reinforced . | . . . . . Active Scanning Responses . | . . . . . Cargo Convoy Interrupts . | . . . . . Stealth | -11 -10 -10 -10 -9 --------- Run | Yrd Mat Min Exi Min Distress Signals 3 | . 3 . . . Communications Jammed . | . . . . . Distress Signals . | . . . . . Times Spotted 52 | . 36 . . 16 Peak Tracking Total 10 | . 7 . . 10 Tactical Retreats 3 | . 3 . . . Traps | -11 -10 -10 -10 -9 ------- Run | Yrd Mat Min Exi Min Traps Triggered . | . . . . . Indirectly . | . . . . . Trap Hack Attempts . | . . . . . Triggered . | . . . . . Disarmed . | . . . . . Reprogrammed . | . . . . . Reused . | . . . . . Traps Extracted . | . . . . . Installed . | . . . . . Triggered . | . . . . . Machines | -11 -10 -10 -10 -9 ---------- Run | Yrd Mat Min Exi Min Machines Disabled 5 | . 1 . . 4 Max in Single Turn 4 | . 1 . . 4 Machines Repaired . | . . . . . Machines Dismantled . | . . . . . Machines Sabotaged . | . . . . . Overloaded Fab Kills . | . . . . . Hacking | -11 -10 -10 -10 -9 --------- Run | Yrd Mat Min Exi Min Machines Accessed 9 | . 5 . 3 1 Terminals 3 | . 2 . . 1 Fabricators . | . . . . . Repair Stations 1 | . 1 . . . Recycling Units 2 | . 2 . . . Scanalyzers . | . . . . . Garrison Access . | . . . . . Total Hacks 52 | . 16 . 33 3 Successful 41 | . 6 . 33 2 Failed 11 | . 10 . . 1 Catastrophic 2 | . 2 . . . Database Lockouts . | . . . . . Manual 11 | . 8 . 1 2 Terminals 11 | . 8 . . 3 Fabricators . | . . . . . Repair Stations 2 | . 2 . . . Recycling Units 6 | . 6 . . . Scanalyzers . | . . . . . Garrison Access . | . . . . . Terminal Hacks 34 | . . . 33 1 Record 33 | . . . 32 1 Proto ID Catalog 1 | . . . 1 . Fabricator Hacks . | . . . . . Repair Station Hacks 1 | . 1 . . . Scan Component 1 | . 1 . . . Recycling Unit Hacks 4 | . 4 . . . Report Inventory 3 | . 3 . . . Retrieve Components 1 | . 1 . . . Scanalyzer . | . . . . . Garrison Access Hacks . | . . . . . Unauthorized Hacks 2 | . 1 . . 1 Terminals 2 | . 1 . . 1 Botnet 1 | . . . . 1 Operators 1 | . 1 . . . Fabricators . | . . . . . Repair Stations . | . . . . . Recycling Units . | . . . . . Scanalyzers . | . . . . . Garrison Access . | . . . . . Data Cores Recovered . | . . . . . Used . | . . . . . Hacking Detections 4 | . 3 . . 1 Full Trace Events 4 | . 3 . . 1 Feedback Events . | . . . . . Feedback Blocked . | . . . . . Robot Schematics Acquired . | . . . . . Robots Built . | . . . . . Authchips . | . . . . . Time . | . . . . . Total Robot Build Rating . | . . . . . Part Schematics Acquired . | . . . . . Parts Built . | . . . . . Authchips . | . . . . . Time . | . . . . . Total Part Build Rating . | . . . . . Part Studies Acquired . | . . . . . Parts Repaired . | . . . . . Time . | . . . . . Parts Recycled . | . . . . . Recycled Matter . | . . . . . Retrieved Matter . | . . . . . Retrieved Components 7 | . 7 . . . Parts Scanalyzed . | . . . . . Part Schematics Acquired . | . . . . . Parts Damaged . | . . . . . Bothacking | -11 -10 -10 -10 -9 ------------ Run | Yrd Mat Min Exi Min Used RIF Installer . | . . . . . Robots Hacked 1 | . . . 1 . Non-combat . | . . . . . Combat 1 | . . . 1 . Robot Hacks Applied 1 | . . . 1 . parse_system 1 | . . . 1 . Relay Couplers Released . | . . . . . Fabnet Peak Effective % . | . . . . . Robots Rewired . | . . . . . Allies Hacked . | . . . . . Hacks Repelled . | . . . . . Allies | -11 -10 -10 -10 -9 -------- Run | Yrd Mat Min Exi Min Total Allies . | . . . . . Largest Group . | . . . . . Highest-Rated Group . | . . . . . Highest-Rated Ally . | . . . . . Total Orders . | . . . . . Ally Attacks . | . . . . . Total Damage . | . . . . . Kills . | . . . . . Allies Corrupted . | . . . . . Allies Melted . | . . . . . Intel | -11 -10 -10 -10 -9 ------- Run | Yrd Mat Min Exi Min Active Infowar (turns) 1139 | 38 1101 . . . Seismic 1139 | 38 1101 . . . Robot Analysis Total . | . . . . . Derelict Logs Recovered . | . . . . . Drone Launches . | . . . . . Drone Recoveries . | . . . . . Exploration | -11 -10 -10 -10 -9 ------------- Run | Yrd Mat Min Exi Min Turns Passed 3958 | 146 2095 586 500 631 Spaces Moved 2311 | 74 1096 304 409 428 Core 5 | 4 1 . . . Treads 234 | 70 164 . . . Legs 1522 | . 931 304 287 . Wheels . | . . . . . Hover . | . . . . . Flight 550 | . . . 122 428 Fastest Speed 50 | 50 120 190 107 107 Average Speed 139 | 155 146 190 116 107 Slowest Speed 250 | 160 250 190 120 107 Overloaded Moves . | . . . . . Propulsion Burnouts . | . . . . . Robots Hopped . | . . . . . Potential Cave-ins . | . . . . . Cave-ins Triggered . | . . . . . Exploration Rate (%) 45 | 5 83 30 72 39 Regions Visited 4 Branch Regions 3 Pre-discovered Areas 1 | . . . 1 . Known Exits Taken 3 | . 1 1 1 . Unknown Exits Taken 1 | 1 . . . . Scrap Searched . | . . . . . Spaces Dug . | . . . . . Terrain Destroyed 28 | . . . . 28 Melee . | . . . . . Projectile . | . . . . . AOE 28 | . . . . 28 Terrain Rammed . | . . . . . Walls Destroyed . | . . . . . Machines Disabled . | . . . . . Actions | -11 -10 -10 -10 -9 --------- Run | Yrd Mat Min Exi Min Total 2846 | 92 1428 308 434 584 Wait 324 | . 184 . . 140 Move 2307 | 73 1095 303 408 428 Hop . | . . . . . Pick Up 27 | 7 14 . 6 . Fast Attach 14 | 6 8 . . . Attach 5 | 1 . . 3 1 Detach 1 | . 1 . . . Swap 17 | . 10 . 6 1 Drop 31 | . 22 . 9 . Fire 100 | 5 84 . . 11 Melee 6 | . 4 . 2 . Ram 3 | . . . . 3 Kick 8 | . 3 5 . . Crush 3 | . 3 . . . Escape Stasis . | . . . . . Rewire . | . . . . . Trap . | . . . . . Miscellaneous . | . . . . . Route ------- -11/Scrapyard -10/Materials (discovered 4 exits: *Mat x2 / *Min / *Sub) -10/Mines (discovered 2 exits: *Mat / *Exi) -10/Exiles -9/Mines (discovered 1 exit: *Mat) History --------- Turn | Location | Event 2 | -11/Scrapyard | Met Revision 17 13 | -11/Scrapyard | Discovered new exit (range 15) 147 | -11/Scrapyard | Entered Materials 148 | -10/Materials | Met a group of wandering Federalists 167 | -10/Materials | Discovered new exit (range 8) 300 | -10/Materials | Build established: Mutant 899 | -10/Materials | Discovered new exit (range 14) 1285 | -10/Materials | Identified exit to Subcaves 1400 | -10/Materials | Identified exit to Mines 1437 | -10/Materials | Discovered new exit (range 8) 1444 | -10/Materials | Identified exit to Materials 1850 | -10/Materials | Discovered exit to Materials (range 16) 2128 | -10/Materials | Core integrity fell below 50% 2242 | -10/Materials | Entered Mines 2469 | -10/Mines | Discovered exit to Materials (range 14) 2814 | -10/Mines | Deemed a non-threat by the Exiles lab entrance 2816 | -10/Mines | Discovered new exit (range 5) 2824 | -10/Mines | Identified exit to Exiles 2828 | -10/Mines | Entered Exiles 2875 | -10/Exiles | Met 8R-AWN 2913 | -10/Exiles | Met EX-HEX 2982 | -10/Exiles | Met EX-DEC 3055 | -10/Exiles | Met EX-BIN 3078 | -10/Exiles | Aligned with FarCom system 3079 | -10/Exiles | Given EX-Vault access code 3142 | -10/Exiles | Opened EX-Vault 3153 | -10/Exiles | Found Prototype Flight Unit 3177 | -10/Exiles | Identified Flying Fortress v7 3210 | -10/Exiles | Exiles lab attacked by MAIN.C 3266 | -10/Exiles | Learned location of Zion (-7) 3309 | -10/Exiles | Discovered new exit (range 14) 3327 | -10/Exiles | Identified exit to Mines 3328 | -10/Exiles | Left Exiles lab with Flying Fortress v7 3328 | -10/Exiles | Entered Mines 3362 | -9/Mines | Discovered new exit (range 11) 3379 | -9/Mines | Identified exit to Materials 3410 | -9/Mines | Met a Derelict bent on vengeance 3908 | -9/Mines | Assembled infested the area 3913 | -9/Mines | Assisted by a Guerilla fighting off Assembled 3959 | -9/Mines | Core integrity fell below 20% 3959 | -9/Mines | Destroyed by D-53 Grenadier with Mini Grenade Launcher Last Messages --------------- 03940_ Acquired 4 matter. 03941_ Acquired 3 matter. 03944_ Acquired 2 matter. 03945_ Acquired 1 matter. 03949_ C-45 Heavy ARC bursts open, deploying its payload. 03949_ D-53 Grenadier unfolds itself. 03951_ as-95127 destroyed. 03952_ The unstable cave ceiling collapses. 03952_ as-86500 destroyed. 03952_ as-30942 destroyed. 03952_ as-13499 destroyed. 03952_ as-58781 destroyed. 03954_ as-87725 destroyed. 03954_ as-03485 destroyed. 03954_ Lgt. Cannon destroyed. 03954_ as-55515 destroyed. 03955_ W7 X#Q5UMHE1IFE